bitfinex/quotes_ETHUSD_20250824
["timestamp","ask_amount","ask_price","bid_price","bid_amount"]
[1756044268561,16.32383939,4769.9,4769.8,0.024]
[1756044269077,16.62733939,4769.9,4769.8,0.024]
[1756044269279,16.32383939,4769.9,4769.8,0.024]
[1756044269681,16.88563323,4769.9,4769.8,0.024]
[1756044270882,17.62033323,4769.9,4769.8,0.024]
[1756044271195,19.20041739,4769.9,4769.8,0.024]
[1756044271518,17.23049534,4769.9,4769.8,0.024]
[1756044271649,17.23049534,4769.9,4769.3,0.004]
[1756044271650,7.03383666,4769.4,4769.3,0.004]
[1756044271999,7.48181949,4769.4,4769.3,0.3018]
[1756044272350,7.48181949,4769.4,4769.3,0.004]
[1756044272599,0.77610456,4769.4,4769.3,2.39854375]
[1756044272751,0.77610456,4769.4,4769.3,2.79872707]
[1756044273090,7.03383666,4769.8,4769.3,2.79872707]
[1756044273398,7.03383666,4769.4,4769.3,2.39854375]
[1756044273890,7.03383666,4769.8,4769.7,2.09656791]
[1756044274053,7.48413357,4769.8,4769.7,2.39436791]
[1756044274808,0.45029691,4769.8,4769.7,2.39436791]
[1756044275251,7.48413357,4769.8,4769.7,0.2978]
[1756044275451,5.11242801,4769.8,4769.3,0.004]
[1756044275651,16.10577829,4769.6,4769.3,0.004]
[1756044275888,0.56217745,4769.9,4769.7,2.09656791]
[1756044276095,0.56217745,4770.2,4770.0,2.09643605]
[1756044276286,0.45047155,4770.1,4770.0,2.09643605]
[1756044276595,0.45047155,4770.1,4770.0,0.2978]
[1756044276757,0.45047155,4770.1,4770.0,2.39423605]
[1756044277601,0.001,4770.5,4770.4,2.09626027]
[1756044277902,0.45153332,4770.5,4770.4,2.84310414]
[1756044278131,0.001,4770.5,4770.4,3.68920414]
[1756044278270,0.001,4770.5,4770.4,6.68920414]
[1756044278271,1e-08,4770.5,4770.4,6.68920414]
[1756044280115,1e-08,4770.5,4770.4,6.02920414]
[1756044281214,1e-08,4770.5,4770.4,9.59020414]
[1756044282116,0.001,4771.0,4770.9,2.09604057]
[1756044282299,0.001,4771.0,4770.9,6.3730557]
[1756044282516,0.001,4771.0,4770.9,6.4778557]
[1756044283301,0.001,4771.0,4770.9,6.6639557]
[1756044284012,0.001,4771.0,4770.9,6.4778557]
[1756044284319,0.02,4771.8,4771.7,2.09568916]
[1756044284468,0.02,4771.8,4771.7,6.37063406]
[1756044284672,0.02,4771.8,4771.7,6.47543406]
[1756044286417,0.021,4771.8,4771.7,6.47543406]
[1756044287071,16.29930084,4771.8,4770.8,1.612]
[1756044287372,15.54360084,4771.0,4770.8,0.02]
[1756044287619,0.3035,4770.9,4769.9,3.562]
[1756044287798,15.54360084,4770.4,4769.9,3.562]
[1756044287995,0.3035,4770.0,4769.9,3.562]
[1756044288368,2.36253008,4770.0,4769.8,0.024]
[1756044288877,0.4312,4769.9,4769.8,0.024]
[1756044289075,0.7347,4769.9,4769.8,0.024]
[1756044293124,1.06281767,4769.9,4769.8,0.024]
[1756044297635,0.63161767,4769.9,4769.8,0.024]
[1756044297795,1.08881767,4769.9,4769.8,0.024]
[1756044298002,0.63161767,4769.9,4769.8,0.024]
[1756044298199,0.32811767,4769.9,4769.8,2.43152396]
[1756044299015,15.54360084,4770.4,4770.0,2.09640686]
[1756044299222,15.54360084,4770.4,4770.1,2.09639016]
[1756044299428,3.0,4770.9,4770.3,0.311]
[1756044299597,3.0,4770.9,4770.4,2.09625699]
[1756044299795,0.308,4770.5,4769.8,2.57329649]
[1756044300024,0.308,4770.5,4770.0,2.09643605]
[1756044300226,0.4572,4770.8,4770.3,2.09627506]
[1756044300420,3.0,4770.9,4770.4,0.311]
[1756044300622,0.4572,4770.8,4770.1,2.09635322]
[1756044300831,0.4572,4770.8,4769.9,4.17222965]
[1756044301136,0.4572,4770.8,4770.2,2.09634439]
[1756044301435,15.54360084,4771.0,4770.2,0.59776117]
[1756044301636,15.54360084,4771.0,4770.6,2.09615789]
[1756044301936,16.00080084,4771.0,4770.7,2.09611836]
[1756044302157,3.651189,4771.8,4770.5,3.558]
[1756044302435,15.54360084,4771.6,4770.5,5.65420502]
[1756044302614,3.7852187,4771.5,4770.5,3.558]
[1756044302935,3.3280187,4771.5,4771.1,2.0959279]
[1756044303137,3.3280187,4771.5,4771.0,2.09599271]
[1756044303536,3.7852187,4771.5,4771.0,2.09599271]
[1756044303840,3.3280187,4771.5,4771.0,2.09595856]
[1756044304004,3.7852187,4771.5,4770.7,2.09611207]
[1756044304199,0.4572,4771.4,4771.0,2.09597416]
[1756044304702,0.4572,4771.4,4771.1,2.09595099]
[1756044304903,3.3280187,4771.5,4770.6,2.09614126]
[1756044305102,3.3280187,4771.5,4770.6,1.00650489]
[1756044305405,0.3280187,4771.5,4770.6,1.00650489]
[1756044305743,0.3280187,4771.5,4771.4,0.311]
[1756044306101,0.3280187,4771.5,4771.4,2.40682093]
[1756044306435,0.6360187,4771.5,4771.1,2.09593037]
[1756044306736,0.6360187,4771.5,4771.3,2.09586399]
[1756044307102,0.6360187,4771.5,4771.2,2.09590583]
[1756044307436,0.3280187,4771.5,4771.1,5.65392004]
[1756044307857,0.3280187,4771.5,4771.3,2.09585806]
[1756044308053,0.3280187,4771.5,4771.4,2.09582093]
[1756044308559,0.3280187,4771.5,4771.4,2.40682093]
[1756044309520,0.3280187,4771.5,4771.1,3.558]
[1756044309750,0.3280187,4771.5,4771.1,5.65393664]
[1756044309976,0.3280187,4771.5,4771.3,2.09583627]
[1756044310547,0.3280187,4771.5,4771.4,2.40682093]
[1756044310871,0.3280187,4771.5,4771.4,3.21289192]
[1756044311158,0.021,4771.8,4771.7,2.09568916]
[1756044311366,0.021,4771.8,4771.7,2.40668916]
[1756044312427,0.021,4771.8,4771.7,2.61278916]
[1756044312855,0.021,4771.8,4771.7,2.71758916]
[1756044313184,0.021,4771.8,4771.7,3.55432485]
[1756044313468,0.329,4771.8,4771.7,5.64868916]
[1756044313642,0.7862,4771.8,4771.4,3.553]
[1756044313841,0.4572,4771.7,4771.4,3.553]
[1756044314052,0.308,4771.5,4771.4,5.64982093]
[1756044315156,0.308,4771.5,4771.4,3.554]
[1756044315336,0.308,4771.5,4771.4,5.64982093]
[1756044316072,0.4572,4771.7,4771.6,2.09573308]
[1756044316285,0.7652,4771.7,4771.6,2.09573308]
[1756044316470,0.021,4771.8,4771.7,2.09568916]
[1756044316638,0.021,4771.8,4771.7,5.95868916]
[1756044317275,0.021,4771.8,4771.7,5.88428916]
[1756044317644,0.329,4771.8,4771.7,5.57328916]
[1756044317969,0.021,4771.8,4771.7,5.88428916]
[1756044318145,0.021,4771.8,4771.7,6.77586996]
[1756044318474,0.021,4771.8,4771.7,6.46486996]
[1756044318651,0.021,4771.8,4771.7,6.77586996]
[1756044320166,0.021,4771.8,4771.7,2.91286996]
[1756044320376,0.021,4771.8,4771.2,1.612]
[1756044320377,0.329,4771.8,4771.4,2.09580851]
[1756044320576,0.4572,4771.7,4771.4,2.09580851]
[1756044320789,0.021,4771.8,4771.6,2.09573308]
[1756044320988,0.021,4771.8,4771.7,2.09568916]
[1756044322579,0.3132,4771.8,4771.7,2.09568916]
[1756044322789,0.7863,4771.8,4771.7,3.55]
[1756044324083,0.7863,4771.8,4771.2,3.81267558]
[1756044324084,0.7863,4771.8,4771.2,0.1048]
[1756044324293,15.54360084,4771.3,4771.2,0.1048]
[1756044324501,15.83580084,4771.3,4771.2,0.1048]
[1756044324781,0.7653,4771.3,4771.2,2.09590878]
[1756044325082,0.32797026,4771.7,4771.6,2.09573308]
[1756044325267,0.32797026,4771.7,4771.6,5.64573308]
[1756044325694,0.32797026,4771.7,4771.6,6.73318787]
[1756044325848,0.021,4771.8,4771.7,1.99568916]
[1756044326049,0.2922,4771.7,4771.6,0.77415479]
[1756044326325,0.2922,4771.7,4771.6,2.09573308]
[1756044326326,0.7653,4771.7,4771.6,2.09573308]
[1756044326687,0.021,4771.8,4771.7,2.09568916]
[1756044327049,0.021,4771.8,4771.7,2.40898916]
[1756044328155,0.021,4771.8,4771.7,2.71988916]
[1756044328585,0.021,4771.8,4771.7,2.51378916]
[1756044328800,0.021,4771.8,4771.7,3.49114402]
[1756044329097,0.021,4771.8,4771.7,3.69724402]
[1756044329257,0.021,4771.8,4771.7,7.25124402]
[1756044329583,0.021,4771.8,4771.7,7.04514402]
[1756044330211,0.021,4771.8,4771.7,6.73084402]
[1756044330893,0.7863,4771.8,4771.7,6.73084402]
[1756044331206,0.021,4771.8,4771.7,7.04314402]
[1756044331572,0.7863,4771.8,4771.7,6.72984402]
[1756044331774,0.7863,4771.8,4771.7,5.64768916]
[1756044333093,0.021,4771.8,4771.7,5.64768916]
[1756044333304,0.021,4771.8,4771.7,5.96098916]
[1756044333843,0.021,4771.8,4771.7,6.06578916]
[1756044334106,0.021,4771.8,4771.7,6.27188916]
[1756044334322,0.021,4771.8,4771.7,7.06375385]
[1756044334874,0.021,4771.8,4771.7,7.26985385]
[1756044335097,0.021,4771.8,4771.7,7.06375385]
[1756044335630,1e-08,4772.0,4771.9,2.75560133]
[1756044335805,1e-08,4772.0,4771.9,11.83590133]
[1756044336110,1e-08,4772.0,4771.9,13.85959162]
[1756044336494,1e-08,4772.3,4772.2,2.75546959]
[1756044336699,1e-08,4772.3,4772.2,8.23676959]
[1756044336882,1e-08,4772.3,4772.2,8.54766959]
[1756044337279,1e-08,4772.3,4772.2,8.34156959]
[1756044337478,1e-08,4772.3,4772.2,9.56703931]
[1756044338024,1e-08,4772.3,4772.2,9.77313931]
[1756044339086,1e-08,4772.3,4772.2,9.56703931]
[1756044340820,1e-08,4772.3,4772.2,6.01103931]
[1756044341027,0.76530001,4772.3,4772.2,1.7168]
[1756044341228,0.76530001,4772.3,4771.6,0.004]
[1756044341445,0.29220001,4772.3,4772.2,2.09546959]
[1756044341595,0.29220001,4772.3,4772.2,3.556]
[1756044342114,0.76530001,4772.3,4772.2,3.556]
[1756044342795,0.76530001,4772.3,4772.2,5.65146959]
[1756044345161,0.76530001,4772.3,4772.2,3.556]
[1756044345319,0.76530001,4772.3,4772.0,2.20035581]
[1756044345515,15.83580085,4772.3,4772.2,3.556]
[1756044345845,15.83580085,4772.3,4772.2,5.65146959]
[1756044346046,16.30890085,4772.3,4772.2,3.556]
[1756044346346,16.30890085,4772.3,4772.2,5.65146959]
[1756044346510,1e-08,4772.3,4772.2,5.65146959]
[1756044346712,1e-08,4772.3,4772.2,6.53297036]
[1756044347219,0.76530001,4772.3,4772.2,5.75926959]
[1756044347425,1e-08,4772.3,4772.2,5.75926959]
[1756044347914,0.29220001,4772.3,4772.2,5.75926959]
[1756044348111,1e-08,4772.3,4772.2,5.75926959]
[1756044348501,0.29220001,4772.3,4772.2,5.75926959]
[1756044348724,1e-08,4772.3,4772.2,5.75926959]
[1756044349231,0.29220001,4772.3,4772.2,5.65446959]
[1756044349402,0.76530001,4772.3,4772.2,3.557]
[1756044349848,0.76530001,4772.3,4772.2,3.558]
[1756044350932,2.42908095,4772.3,4771.7,2.09568916]
[1756044351110,15.54360084,4771.7,4771.6,2.09973308]
[1756044351430,16.01670085,4772.3,4772.2,2.09546959]
[1756044351616,16.30890085,4772.3,4772.2,5.65346959]
[1756044352636,16.30890085,4772.3,4772.2,3.558]
[1756044352842,16.30890085,4772.3,4772.2,5.65346959]
[1756044353217,0.76530001,4772.3,4772.2,5.65346959]
[1756044353410,0.29220001,4772.3,4772.2,5.65346959]
[1756044354333,1e-08,4772.3,4772.2,5.65346959]
[1756044354908,0.28560001,4772.3,4772.2,5.65346959]
[1756044355310,1e-08,4772.3,4772.2,5.65346959]
[1756044355623,1e-08,4772.3,4772.2,5.94206959]
[1756044356537,1e-08,4772.3,4772.2,5.65346959]
[1756044357121,0.28560001,4772.3,4772.2,5.65346959]
[1756044357519,0.71450001,4772.3,4772.1,0.1088]
[1756044357746,0.71450001,4772.3,4770.8,2.11606482]
[1756044357747,3.0,4771.7,4770.8,2.11606482]
[1756044357910,9.25314353,4771.7,4770.8,0.02]
[1756044358109,0.44938345,4771.6,4771.2,0.004]
[1756044358311,0.2856,4771.3,4771.2,0.004]
[1756044358640,0.3904,4771.3,4771.2,0.004]
[1756044359010,0.8193,4771.3,4771.2,0.004]
[1756044359205,16.69089464,4771.3,4771.2,0.004]
[1756044359441,18.83277264,4771.3,4771.2,0.004]
[1756044359839,18.50477884,4771.3,4771.2,0.004]
[1756044363642,18.83277367,4771.3,4771.2,0.004]
[1756044365435,18.83277367,4771.3,4771.2,2.09990878]
[1756044365745,18.83277367,4771.3,4771.2,0.004]
[1756044366850,15.97639567,4771.3,4771.2,2.09990878]
[1756044367015,15.97639567,4771.3,4771.2,0.004]
[1756044367016,16.69089567,4771.3,4771.2,0.004]
[1756044367412,15.97639567,4771.3,4771.2,0.2926]
[1756044367644,0.43279483,4771.3,4771.2,5.94750878]
[1756044367826,1e-08,4772.3,4771.2,5.94750878]
[1756044367827,0.1048,4771.7,4771.6,2.09573308]
[1756044368211,0.3904,4771.7,4771.2,3.563]
[1756044368738,16.36290084,4771.7,4771.2,3.563]
[1756044368966,15.93400084,4771.7,4771.3,2.09582389]
[1756044369137,0.4289,4771.6,4771.3,2.09582389]
[1756044369450,0.4289,4771.6,4771.4,2.09580846]
[1756044369651,0.4289,4771.6,4771.2,3.563]
[1756044369652,0.2856,4771.5,4771.2,3.563]
[1756044369952,0.4289,4771.6,4771.2,3.563]
[1756044370154,0.4289,4771.5,4771.2,3.563]
[1756044370355,0.2856,4771.3,4771.2,3.563]
[1756044370552,0.2856,4771.3,4771.2,0.004]
[1756044370715,1.86852008,4771.3,4771.2,0.004]
[1756044370913,2.29742008,4771.3,4771.2,0.004]
[1756044371956,5.85642008,4771.3,4770.8,0.02]
[1756044372248,15.64840084,4770.9,4770.8,0.02]
[1756044372414,22.49300084,4770.9,4770.8,0.02]
[1756044372618,23.91591317,4770.9,4770.8,0.02]
[1756044373750,23.91591317,4770.9,4770.7,0.004]
[1756044373960,23.48701317,4770.9,4770.7,0.004]
[1756044374250,0.4289,4770.8,4770.7,0.004]
[1756044374453,0.43284447,4770.9,4770.7,0.004]
[1756044374625,0.1048,4770.8,4770.7,0.004]
[1756044375118,0.3904,4770.8,4770.7,0.004]
[1756044375554,0.3904,4770.8,4770.7,2.10012845]
[1756044375555,0.1048,4770.8,4770.7,2.10012845]
[1756044375752,0.1048,4770.8,4770.7,0.004]
[1756044376227,0.3904,4770.8,4770.7,0.004]
[1756044376624,0.8193,4770.8,4770.7,0.004]
[1756044376828,2.84459453,4770.8,4770.7,0.004]
[1756044378457,0.8193,4770.8,4770.7,0.004]
[1756044383091,1.14733418,4770.8,4770.7,0.004]
[1756044383289,11.17936239,4770.8,4770.4,0.004]
[1756044383494,0.66,4770.6,4770.2,0.004]
[1756044383677,7.03202821,4770.1,4770.0,0.004]
[1756044383878,10.90452821,4770.1,4770.0,0.004]
[1756044384069,11.34202821,4770.1,4770.0,0.004]
[1756044384276,12.81480935,4770.1,4770.0,0.004]
[1756044384889,9.25680935,4770.1,4770.0,0.004]
[1756044385104,0.32809832,4770.1,4770.0,0.004]
[1756044385407,1.08009832,4770.1,4770.0,0.004]
[1756044385964,0.32809832,4770.1,4770.0,0.004]
[1756044386187,0.32809832,4770.1,4770.0,0.3138]
[1756044386692,0.32809832,4770.1,4770.0,0.004]
[1756044387663,0.32809832,4770.1,4770.0,2.10043605]
[1756044388256,0.32809832,4770.1,4770.0,2.41023605]
[1756044389394,1.08009832,4770.1,4770.0,0.004]
[1756044389762,0.752,4770.1,4770.0,0.004]
[1756044390162,2.74763643,4770.1,4770.0,0.004]
[1756044391061,6.30363643,4770.1,4770.0,0.004]
[1756044391870,9.30363643,4770.1,4770.0,0.004]
[1756044392073,9.75267244,4770.1,4770.0,0.004]
[1756044393069,10.0807774,4770.1,4770.0,0.004]
[1756044394503,3.0,4770.0,4769.8,0.024]
[1756044394719,30.66,4769.8,4769.1,0.04]
[1756044394870,18.8570643,4769.2,4769.1,0.04]
[1756044395203,24.58370232,4769.2,4769.1,0.04]
[1756044395582,25.34935665,4769.2,4769.1,0.04]
[1756044395901,27.34499308,4769.2,4769.1,0.04]
[1756044396805,27.34474703,4769.2,4769.1,0.04]
[1756044398080,27.34374703,4769.2,4769.1,0.04]
[1756044399304,3.0,4769.1,4768.1,0.04]
[1756044399504,4.20059197,4769.1,4768.1,0.04]
[1756044399697,4.78188795,4769.1,4768.1,2.13725962]
[1756044399895,4.78188795,4769.1,4768.1,0.04]
[1756044400410,4.78200985,4769.1,4768.1,2.13726869]
[1756044400585,4.78200985,4769.1,4768.1,0.04]
[1756044400784,4.78200985,4769.1,4768.1,2.13726465]
[1756044401010,4.78200985,4769.1,4768.1,0.04]
[1756044401556,4.78200985,4769.1,4768.1,2.13724832]
[1756044402025,4.78200985,4769.1,4768.3,2.09715653]
[1756044402501,4.78200985,4769.1,4768.2,2.09722095]
[1756044402710,4.78200985,4769.1,4768.6,0.004]
[1756044402881,8.33800985,4769.1,4768.6,0.004]
[1756044403086,5.11016912,4769.1,4768.6,0.004]
[1756044403302,0.77687314,4769.1,4769.0,0.3138]
[1756044403486,3.88315927,4769.1,4769.0,0.3138]
[1756044403891,3.98795927,4769.1,4769.0,0.3138]
[1756044404410,3.98895927,4769.1,4769.0,0.3138]
[1756044405409,7.467435,4769.1,4769.0,0.004]
[1756044405614,7.467435,4769.1,4769.0,0.3138]
[1756044406978,11.021435,4769.1,4769.0,0.3138]
[1756044408310,7.467435,4769.1,4769.0,0.3138]
[1756044408510,11.021435,4769.1,4769.0,2.41067565]
[1756044409228,11.021435,4769.1,4769.0,0.3138]
[1756044409529,11.021435,4769.1,4769.0,0.004]
[1756044409890,11.021435,4769.1,4769.0,0.3138]
[1756044410094,11.021435,4769.1,4769.0,0.004]
[1756044410902,11.021435,4769.1,4769.0,0.3138]
[1756044411098,7.467435,4769.1,4769.0,0.3138]
[1756044411423,7.467435,4769.1,4769.0,2.41067565]
[1756044412621,0.43295927,4769.1,4769.0,0.3138]
[1756044412917,7.467435,4769.1,4769.0,2.41067565]
[1756044413117,7.362635,4769.1,4769.0,2.41067565]
[1756044413288,1.613,4769.9,4769.0,2.41067565]
[1756044413289,7.13927573,4769.5,4769.4,2.09669979]
[1756044413485,7.13927573,4769.5,4769.4,2.39999979]
[1756044414638,7.13927573,4769.5,4769.4,0.3033]
[1756044414954,7.13927573,4769.5,4769.1,2.09679712]
[1756044415235,4.0201,4769.4,4769.1,2.09683168]
[1756044415607,4.0201,4769.4,4769.2,2.09677602]
[1756044415834,7.03447573,4769.3,4769.2,2.09677602]
[1756044416037,7.13927573,4769.3,4769.2,2.09677602]
[1756044416232,7.13927573,4769.3,4769.2,2.40007602]
[1756044416904,0.1048,4769.3,4769.2,2.85457053]
[1756044417239,7.13927573,4769.7,4769.5,2.09665583]
[1756044417438,0.4329149,4769.9,4769.8,2.09652396]
[1756044417605,0.4329149,4769.9,4769.8,0.3033]
[1756044417802,0.4329149,4769.9,4769.8,2.39982396]
[1756044418944,0.7380149,4769.9,4769.3,3.0]
[1756044419109,7.46739063,4769.9,4769.8,2.39982396]
[1756044419738,7.77249063,4769.9,4769.5,3.0]
[1756044419942,0.001,4769.8,4769.7,2.09656401]
[1756044420140,4.3262,4769.8,4769.1,2.09683168]
[1756044420443,0.1048,4769.3,4769.2,2.09678772]
[1756044420648,0.001,4769.8,4769.1,0.35092426]
[1756044420810,7.33957573,4769.2,4769.0,0.004]
[1756044421140,7.80867573,4769.2,4769.1,2.09683168]
[1756044421345,7.03447573,4769.2,4769.1,2.40013168]
[1756044421836,0.1048,4769.3,4769.2,2.09678772]
[1756044422040,3.552,4769.8,4769.7,2.09656791]
[1756044422253,0.1058,4769.8,4769.7,2.39986791]
[1756044423132,0.1058,4769.8,4769.7,2.09656791]
[1756044424963,7.14027573,4769.8,4769.7,2.39986791]
[1756044425138,7.03547573,4769.8,4769.7,2.39986791]
[1756044426314,7.03547573,4769.8,4769.7,2.09656791]
[1756044427044,0.001,4769.8,4769.7,2.39986791]
[1756044427247,7.03547573,4769.8,4769.7,2.39986791]
[1756044427752,0.001,4769.8,4769.7,2.39986791]
[1756044427951,7.03547573,4769.8,4769.7,2.39986791]
[1756044428450,7.03547573,4769.8,4769.7,2.09656791]
[1756044429126,7.34057573,4769.8,4769.6,3.549]
[1756044429329,7.34057573,4769.8,4769.7,2.09656791]
[1756044429739,0.7752,4769.8,4769.7,2.09656791]
[1756044429920,7.03547573,4769.8,4769.7,2.09656791]
[1756044430463,7.03547573,4769.8,4769.7,2.39986791]
[1756044431117,0.001,4769.8,4769.7,2.39986791]
[1756044431949,0.001,4769.8,4769.7,3.22502853]
[1756044432141,0.001,4769.8,4769.7,3.32982853]
[1756044432937,0.001,4769.8,4769.7,3.53592853]
[1756044433726,0.001,4769.8,4769.7,3.02652853]
[1756044433922,0.001,4769.8,4769.7,6.57452853]
[1756044434250,0.001,4769.8,4769.7,2.20136791]
[1756044434449,0.7752,4769.8,4769.7,2.09656791]
[1756044439329,4.3222,4769.8,4769.3,3.547]
[1756044439645,7.13927573,4769.4,4769.3,5.64373308]
[1756044439847,7.44437573,4769.4,4769.3,5.64373308]
[1756044440045,7.13927573,4769.4,4769.3,5.64373308]
[1756044441666,0.001,4769.8,4769.7,2.09656791]
[1756044442039,0.7741,4769.8,4769.7,2.09656791]
[1756044443073,0.001,4769.8,4769.7,2.09656791]
[1756044443639,0.001,4769.8,4769.7,2.41086791]
[1756044443943,0.001,4769.8,4769.7,2.51566791]
[1756044444146,0.001,4769.8,4769.7,3.35240923]
[1756044445167,0.001,4769.8,4769.7,6.90040923]
[1756044447270,0.001,4769.8,4769.7,7.76650923]
[1756044447487,1e-08,4769.8,4769.7,10.76650923]
[1756044448144,1e-08,4770.3,4770.2,2.75634816]
[1756044448342,1e-08,4770.3,4770.2,7.47292219]
[1756044448544,1e-08,4770.3,4770.2,7.57772219]
[1756044448751,1e-08,4770.3,4770.2,7.78382219]
[1756044451156,1e-08,4770.3,4770.2,7.57772219]
[1756044455800,1e-08,4770.3,4770.2,10.57772219]
[1756044467038,1e-08,4770.3,4770.2,10.78382219]
[1756044467353,1e-08,4770.3,4770.2,10.57772219]
[1756044469627,1e-08,4770.7,4770.6,2.09617238]
[1756044469846,1e-08,4770.7,4770.6,12.69648568]
[1756044470043,0.021,4770.8,4770.7,5.75612845]
[1756044470044,1e-08,4770.8,4770.7,5.75612845]
[1756044470271,1e-08,4770.8,4770.7,6.07042845]
[1756044471780,0.77310001,4770.8,4770.7,9.29312845]
[1756044475548,1e-08,4770.8,4770.7,9.29312845]
[1756044475742,1e-08,4770.8,4770.7,10.75143986]
[1756044476874,1e-08,4770.8,4770.7,11.05813986]
[1756044479677,1e-08,4771.3,4771.2,2.75590878]
[1756044479972,1e-08,4771.3,4771.2,9.70040878]
[1756044480173,1e-08,4771.3,4771.2,10.88004712]
[1756044480378,0.084992,4772.6,4772.2,2.09546959]
[1756044480706,0.4648,4772.6,4772.2,5.62846959]
[1756044480870,0.75520001,4772.3,4772.2,5.73326959]
[1756044481073,1e-08,4772.3,4772.2,9.69996959]
[1756044481273,1e-08,4772.3,4772.2,11.2502847]
[1756044481474,0.29140001,4772.3,4772.2,7.4105847]
[1756044481710,0.75520001,4772.3,4772.2,8.73426959]
[1756044482520,0.29140001,4772.3,4772.2,8.73426959]
[1756044482810,0.75520001,4772.3,4772.2,8.73426959]
[1756044483224,0.46380001,4772.3,4772.2,8.73426959]
[1756044483585,1e-08,4772.3,4772.2,8.73426959]
[1756044483796,1e-08,4772.3,4772.2,10.1880147]
[1756044484925,1e-08,4772.3,4772.2,11.1547147]
[1756044486006,1e-08,4772.3,4772.2,10.8480147]
[1756044487042,0.75520001,4772.3,4772.2,8.73126959]
[1756044487944,0.29140001,4772.3,4772.2,8.73126959]
[1756044488470,1e-08,4772.3,4772.2,9.69796959]
[1756044489863,0.29140001,4772.3,4772.2,5.86026959]
[1756044490037,0.75520001,4772.3,4772.2,8.73226959]
[1756044492156,0.001,4772.7,4772.5,0.66]
[1756044492461,0.7552,4772.6,4772.5,2.09533787]
[1756044492655,0.7552,4772.6,4772.5,5.63633787]
[1756044492835,0.7552,4772.6,4772.5,5.74113787]
[1756044493226,0.7552,4772.6,4772.5,6.87969091]
[1756044497066,0.7552,4772.6,4772.5,3.33869091]
[1756044497266,0.7552,4772.6,4772.5,5.73913787]
[1756044499342,0.001,4772.7,4772.6,2.09529396]
[1756044499775,0.7562,4772.7,4772.6,2.09529396]
[1756044502770,0.001,4772.7,4772.6,2.09529396]
[1756044503064,0.734,4772.7,4772.6,2.09529396]
[1756044506908,0.001,4772.7,4772.6,2.09529396]
[1756044508198,0.001,4772.7,4772.6,3.339394]
[1756044508782,0.001,4772.7,4772.6,3.999394]
[1756044509004,0.001,4772.7,4772.6,4.104194]
[1756044509505,0.001,4773.3,4772.6,4.104194]
[1756044509706,0.001,4773.3,4773.2,2.85983058]
[1756044509863,0.001,4773.3,4773.2,8.60611364]
[1756044510901,1e-08,4773.3,4773.2,5.07211364]
[1756044511066,1e-08,4773.3,4773.2,8.60611364]
[1756044511262,1e-08,4773.6,4773.5,2.75489892]
[1756044511508,1e-08,4773.6,4773.5,6.70799892]
[1756044511720,1e-08,4773.6,4773.5,7.77799374]
[1756044511998,0.001,4774.3,4774.2,2.09459176]
[1756044512193,0.001,4774.3,4774.2,7.23859176]
[1756044512410,0.001,4774.3,4774.2,7.34339176]
[1756044512769,0.001,4774.3,4774.2,8.28719687]
[1756044513088,0.001,4774.3,4774.2,9.26249687]
[1756044514033,0.041,4774.8,4774.7,2.09437242]
[1756044514327,0.041,4774.8,4774.7,6.39217242]
[1756044514598,0.041,4774.8,4774.7,6.70747242]
[1756044514801,1e-08,4774.8,4774.7,7.79711863]
[1756044515697,1e-08,4774.9,4774.8,2.75432855]
[1756044515999,1e-08,4774.9,4774.8,3.06962855]
[1756044517878,0.29270001,4774.9,4774.8,2.09432855]
[1756044518081,0.73300001,4774.9,4774.8,5.62532855]
[1756044518385,0.73300001,4774.9,4774.8,2.09432855]
[1756044518586,1.50974758,4774.9,4774.8,3.532]
[1756044518787,1.50974758,4774.9,4774.8,3.057]
[1756044518988,1.50974758,4774.9,4774.8,3.533]
[1756044519299,7.76747574,4774.9,4774.8,5.62732855]
[1756044520607,7.76747574,4774.9,4774.8,3.533]
[1756044520902,7.76747574,4774.9,4774.6,3.532]
[1756044520903,3.0,4774.8,4774.6,3.532]
[1756044521101,0.2927,4774.7,4774.6,3.532]
[1756044521307,0.733,4774.7,4774.6,3.532]
[1756044521617,0.733,4774.7,4773.8,0.02]
[1756044521618,1.82022757,4774.7,4773.8,0.02]
[1756044521796,0.1048,4774.3,4773.9,3.532]
[1756044521975,0.2927,4774.0,4773.9,3.532]
[1756044522318,0.733,4774.0,4773.9,3.536]
[1756044522611,1.467561,4774.0,4773.9,3.536]
[1756044522909,8.50203673,4774.0,4773.9,3.536]
[1756044525474,1.467561,4774.0,4773.9,3.536]
[1756044525690,0.2927,4774.0,4773.9,5.63072339]
[1756044525894,7.32717573,4774.0,4773.9,5.63072339]
[1756044526124,7.76747573,4774.0,4773.9,5.63072339]
[1756044526324,7.76747573,4774.0,4773.9,3.536]
[1756044526833,7.76747573,4774.0,4773.9,5.63072339]
[1756044527040,7.76747573,4774.0,4773.8,3.554]
[1756044527195,0.77674757,4773.9,4773.8,3.554]
[1756044527525,0.733,4773.9,4773.8,3.554]
[1756044527911,0.733,4773.9,4773.8,5.64876727]
[1756044528989,0.733,4773.9,4773.8,3.554]
[1756044529899,0.733,4773.9,4773.8,5.64876727]
[1756044530224,0.2927,4773.9,4773.8,5.64876727]
[1756044530427,7.03447573,4774.0,4773.9,2.09472339]
[1756044531007,7.03447573,4774.0,4773.9,2.41002339]
[1756044532528,0.32779006,4774.3,4774.2,2.09459176]
[1756044532732,7.36226579,4774.3,4774.2,5.63159176]
[1756044533310,7.03447573,4774.3,4774.2,5.63159176]
[1756044533615,7.03447573,4774.3,4774.2,5.94289176]
[1756044534844,7.03447573,4774.6,4774.5,2.09446015]
[1756044535055,7.03447573,4774.6,4774.5,5.94276015]
[1756044535264,7.03447573,4774.6,4774.5,6.04756015]
[1756044535769,7.03447573,4774.6,4774.5,5.73626015]
[1756044536056,7.33047573,4774.6,4774.5,5.73626015]
[1756044537043,0.296,4774.6,4774.5,5.73626015]
[1756044537349,7.33047573,4774.6,4774.5,5.73626015]